bitfinex/quotes_SOLUSD_20250531
["timestamp","ask_amount","ask_price","bid_price","bid_amount"]
[1748689843460,12.32766435,153.05,153.0,18.86346491]
[1748689844061,6.533626,153.06,153.0,18.86346491]
[1748689844271,12.32766435,153.05,153.0,18.86346491]
[1748689845966,18.86148958,153.05,153.0,18.86346491]
[1748689846149,18.86148958,153.05,153.0,12.32766435]
[1748689846350,18.86148958,153.05,153.0,18.86354546]
[1748689846553,12.32766435,153.04,153.0,18.86354546]
[1748689846767,18.86148958,153.05,153.0,6.53588111]
[1748689846967,18.86148958,153.05,153.0,18.86354546]
[1748689847300,6.53350871,153.06,153.0,18.86354546]
[1748689847460,12.32766435,153.05,153.0,18.86354546]
[1748689848505,18.86151209,153.05,153.0,18.86354546]
[1748689849084,12.32766435,153.05,153.0,18.86354546]
[1748689850495,12.32766435,153.05,153.0,12.32766435]
[1748689851073,12.32766435,153.06,153.0,12.32766435]
[1748689851552,18.86132727,153.06,153.0,18.86324421]
[1748689855252,22.61514245,153.08,153.0,18.86324421]
[1748689855253,6.2836,153.08,153.03,12.32766435]
[1748689855456,6.2836,153.08,153.04,12.32766435]
[1748689857070,6.2836,153.08,153.05,6.53381247]
[1748689859259,6.2836,153.08,153.04,12.32766435]
[1748689859460,18.61126435,153.08,153.03,38.32766435]
[1748689859882,6.2836,153.08,153.04,12.32766435]
[1748689861458,6.2836,153.08,153.04,18.86174504]
[1748689862277,13.88686435,153.1,153.04,18.86174504]
[1748689862659,12.32766435,153.09,153.04,12.32766435]
[1748689862862,8.09095983,153.1,153.03,44.86215023]
[1748689862863,12.32766435,153.08,153.03,44.86215023]
[1748689863081,12.32766435,153.08,153.03,32.53448588]
[1748689863279,12.32766435,153.08,153.03,44.86215023]
[1748689864082,12.32766435,153.08,153.03,32.53448588]
[1748689864299,12.32766435,153.06,153.01,18.8631849]
[1748689864700,6.53277401,153.08,153.01,18.8631849]
[1748689864701,12.32766435,153.07,153.01,18.8631849]
[1748689864992,12.32766435,153.07,153.02,12.32766435]
[1748689865196,12.32766435,153.07,153.02,18.86259866]
[1748689865604,18.86043836,153.08,153.03,12.32766435]
[1748689867710,18.86043836,153.08,153.03,18.86232118]
[1748689871018,12.32766435,153.08,153.03,18.86232118]
[1748689871597,18.85991846,153.09,153.04,12.32766435]
[1748689871812,12.32766435,153.08,153.03,18.86232118]
[1748689872520,18.86032599,153.08,153.03,18.86232118]
[1748689873488,13.88686435,153.1,153.05,12.32766435]
[1748689874014,1.5592,153.1,153.05,12.32766435]
[1748689874192,13.88686435,153.1,153.05,12.32766435]
[1748689874518,13.88686435,153.1,153.05,18.86119127]
[1748689876023,8.09093819,153.1,153.03,22.87133241]
[1748689876324,20.41860254,153.1,153.04,12.32766435]
[1748689876621,12.32766435,153.09,153.04,12.32766435]
[1748689877625,12.32766435,153.09,153.03,18.86233075]
[1748689878036,6.53295877,153.07,153.02,44.86259501]
[1748689878236,6.53295877,153.07,153.0,16.48097114]
[1748689878237,18.86062312,153.07,153.01,26.0]
[1748689878523,18.86062312,153.07,153.01,38.32766435]
[1748689878721,12.32766435,153.06,153.01,26.0]
[1748689879097,12.32766435,153.05,153.01,26.0]
[1748689879734,12.32766435,153.06,153.0,18.86345813]
[1748689879942,12.32766435,153.05,153.0,18.86345813]
[1748689880233,12.32766435,153.05,153.0,12.32766435]
[1748689881495,12.32766435,153.04,152.99,32.53626117]
[1748689881702,12.32766435,153.03,152.99,32.53626985]
[1748689881899,12.32766435,153.04,152.99,44.8639342]
[1748689882828,18.86165044,153.05,153.0,12.32766435]
[1748689883050,12.32766435,153.05,153.0,18.86331019]
[1748689883603,18.8612044,153.06,153.01,12.32766435]
[1748689883820,12.32766435,153.06,153.01,12.32766435]
[1748689883997,12.32766435,153.07,153.02,12.32766435]
[1748689884424,12.32766435,153.05,153.0,18.86331019]
[1748689887108,6.53309806,153.07,153.0,18.86331019]
[1748689887316,12.32766435,153.06,153.01,12.32766435]
[1748689890116,12.32766435,153.06,153.01,18.86279777]
[1748689891907,12.32766435,153.07,153.02,12.32766435]
[1748689892619,137.72385003,153.08,153.04,12.32766435]
[1748689892811,18.85995094,153.09,153.04,12.32766435]
[1748689893012,12.32766435,153.08,153.03,12.32766435]
[1748689894019,18.86022117,153.08,153.03,18.86199383]
[1748689894714,12.32766435,153.08,153.03,18.86199383]
[1748689905737,12.32766435,153.07,153.02,6.53498515]
[1748689905920,12.32766435,153.07,153.02,18.8626495]
[1748689907018,18.86078575,153.07,153.02,18.8626495]
[1748689913914,14.42136482,153.07,153.02,7.88824342]
[1748689915139,14.42136482,153.07,153.02,14.42312436]
[1748689918434,6.5331214,153.07,153.03,7.88824342]
[1748689920043,14.42092726,153.08,153.03,7.88824342]
[1748689921045,7.88824342,153.07,153.02,14.42318191]
[1748689921242,7.88824342,153.07,153.02,7.88824342]
[1748689921442,7.88824342,153.06,153.0,9.46464342]
[1748689922025,6.53381247,153.05,153.0,16.00043106]
[1748689922425,14.42179123,153.06,153.0,16.00043106]
[1748689923471,14.42179123,153.06,153.01,7.88824342]
[1748689924145,14.42179123,153.06,153.01,14.42369707]
[1748689924745,14.42179123,153.06,153.01,6.53545365]
[1748689925250,6.53354781,153.06,153.0,1.5764]
[1748689925543,7.88824342,153.05,153.0,33.88824342]
[1748689926427,14.42228277,153.05,153.0,40.4241902]
[1748689926622,7.88824342,153.05,153.0,40.4241902]
[1748689927645,14.42211086,153.05,153.0,40.4241902]
[1748689927838,7.88824342,153.07,153.01,7.88824342]
[1748689928039,6.53174895,153.1,153.05,7.88824342]
[1748689928352,19.26253524,153.11,153.07,7.88824342]
[1748689928353,11.37429182,153.11,153.07,7.88824342]
[1748689928539,29.04984115,153.15,153.1,7.88824342]
[1748689929051,29.04984115,153.15,153.07,26.0]
[1748689929052,29.04984115,153.15,153.09,7.88824342]
[1748689929252,14.63168685,153.15,153.1,7.88824342]
[1748689929455,14.63168685,153.15,153.11,7.88824342]
[1748689930027,14.63168685,153.15,153.11,12.31148405]
[1748689930446,14.63168685,153.15,153.11,18.84258186]
[1748689930975,18.84076607,153.16,153.11,18.84258186]
[1748689933127,18.84076607,153.16,153.08,1.551]
[1748689933128,12.31148405,153.14,153.09,12.31148405]
[1748689933343,6.52928202,153.16,153.07,38.31148405]
[1748689933344,12.31148405,153.12,153.07,38.31148405]
[1748689933555,12.31148405,153.12,153.07,12.31148405]
[1748689933749,12.31148405,153.11,153.06,12.31148405]
[1748689933946,12.31148405,153.11,153.05,32.53368656]
[1748689933947,12.31148405,153.1,153.05,44.84517061]
[1748689935246,18.84290815,153.11,153.06,12.31148405]
[1748689935446,12.31148405,153.1,153.05,38.31148405]
[1748689936637,12.31148405,153.1,153.05,44.84517154]
[1748689936849,12.31148405,153.1,153.05,12.31148405]
[1748689937355,18.84343925,153.1,153.05,12.31148405]
[1748689937559,18.84343925,153.1,153.05,18.84520672]
[1748689938062,18.84343925,153.1,153.05,12.31148405]
[1748689938441,18.84343925,153.1,153.05,18.84527825]
[1748689941438,18.84343925,153.1,153.05,6.5337942]
[1748689944245,18.84343925,153.1,153.04,20.41446298]
[1748689944560,18.84343925,153.1,153.04,1.5688]
[1748689944561,12.31148405,153.08,153.04,1.5688]
[1748689944868,12.31148405,153.08,153.04,8.10299674]
[1748689945164,12.31148405,153.09,153.04,20.41448079]
[1748689945975,18.84360927,153.09,153.04,20.41448079]
[1748689946157,12.31148405,153.08,153.03,32.53450155]
[1748689946454,12.31148405,153.08,153.03,44.8459856]
[1748689947252,12.31148405,153.08,153.03,32.53450155]
[1748689948074,12.31148405,153.08,153.03,44.8459856]
[1748689950354,12.31148405,153.09,153.04,12.31148405]
[1748689951462,163.72385003,153.14,153.06,12.31148405]
[1748689951654,12.31148405,153.11,153.06,12.31148405]
[1748689951850,163.72385003,153.14,153.08,12.31148405]
[1748689952050,12.31148405,153.14,153.08,12.31148405]
[1748689952253,6.52984242,153.15,153.1,12.31148405]
[1748689952254,12.31148405,153.15,153.1,12.31148405]
[1748689952469,12.31148405,153.16,153.1,12.31148405]
[1748689953073,12.31148405,153.15,153.1,12.31148405]
[1748689953273,12.31148405,153.15,153.11,6.53125204]
[1748689954162,12.31148405,153.16,153.11,18.84273609]
[1748689954551,12.31148405,153.15,153.11,6.53125204]
[1748689954974,12.31148405,153.16,153.11,6.53125204]
[1748689955371,18.84076317,153.16,153.11,6.53125204]
[1748689955763,12.31148405,153.15,153.11,6.53125204]
[1748689956150,12.31148405,153.14,153.08,12.31148405]
[1748689956355,12.31148405,153.14,153.09,12.31148405]
[1748689957475,18.84159012,153.14,153.08,18.84401605]
[1748689957976,12.31148405,153.14,153.09,12.31148405]
[1748689958160,8.0643,153.2,153.12,12.31148405]
[1748689958489,12.31148405,153.18,153.13,12.31148405]
[1748689959585,34.13892915,153.2,153.12,6.53082549]
[1748689959586,12.31148405,153.17,153.12,6.53082549]
[1748689961962,12.31148405,153.17,153.12,18.84230954]
[1748689963668,6.52832723,153.18,153.12,18.84230954]
[1748689963970,12.31148405,153.17,153.12,18.84230954]
[1748689964180,12.31148405,153.17,153.12,6.53082549]
[1748689965491,12.31148405,153.15,153.11,8.12303748]
[1748689968093,12.31148405,153.14,153.11,6.53113748]
[1748689968395,12.31148405,153.12,153.08,6.532532]
[1748689968569,12.31148405,153.11,153.08,6.532532]
[1748689969490,12.31148405,153.09,153.05,6.53368152]
[1748689969669,0.28432314,153.12,153.03,20.20698405]
[1748689969670,12.31148405,153.08,153.03,20.20698405]
[1748689970282,12.31148405,153.09,153.04,18.84558752]
[1748689971283,12.31148405,153.08,153.04,6.53410347]
[1748689973699,6.53140001,153.11,153.04,18.84558752]
[1748689973700,12.31148405,153.09,153.04,18.84558752]
[1748689974080,12.31148405,153.08,153.04,6.53410347]
[1748689975775,12.31148405,153.09,153.04,18.84558752]
[1748689978202,0.28432314,153.12,153.04,18.84558752]
[1748689978203,12.31148405,153.08,153.04,6.53410347]
[1748689979382,12.31148405,153.09,153.04,18.84558752]
[1748689980103,12.31148405,153.08,153.04,6.53410347]
[1748689984891,12.31148405,153.09,153.04,18.84558752]
[1748689985087,12.31148405,153.1,153.04,18.84558752]
[1748689986882,18.84322851,153.1,153.04,18.84558752]
[1748689987108,18.84322851,153.1,153.04,6.53410347]
[1748689987109,12.31148405,153.08,153.04,6.53410347]
[1748689988206,12.31148405,153.08,153.03,18.84615045]
[1748689991224,12.31148405,153.1,153.04,12.31148405]
[1748689992300,18.84326337,153.1,153.05,6.53381247]
[1748689992522,12.31148405,153.09,153.05,6.53381247]
[1748689995217,12.31148405,153.08,153.05,6.53381247]
[1748689996815,12.31148405,153.08,153.03,12.31148405]
[1748689996816,12.31148405,153.08,153.04,6.53423941]
[1748690000234,12.31148405,153.1,153.04,18.84572346]
[1748690000432,12.31148405,153.11,153.06,12.31148405]
[1748690001430,12.31148405,153.11,153.05,18.84529652]
[1748690001630,18.84284986,153.11,153.05,18.84529652]
[1748690001932,12.31148405,153.08,153.04,6.5340624]
[1748690003234,12.31148405,153.07,153.04,6.5340624]
[1748690004407,12.31148405,153.07,153.03,6.5346664]
[1748690005013,18.84483543,153.07,153.02,12.31148405]
[1748690005225,18.84483543,153.07,152.99,8.1632]
[1748690005226,12.31148405,153.03,152.99,8.1632]
[1748690005528,12.31148405,153.05,152.99,46.47468405]
[1748690005927,12.31148405,153.05,153.0,6.53585756]
[1748690006114,26.0,153.1,153.0,6.53585756]
[1748690006115,12.31148405,153.06,153.0,18.84734161]
[1748690007136,12.31148405,153.06,153.01,12.31148405]
[1748690007333,18.84492705,153.06,153.01,12.31148405]
[1748690008433,18.84492705,153.06,153.01,18.84670764]
[1748690011341,12.31148405,153.06,153.01,18.84670764]
[1748690012425,18.84454921,153.07,153.02,12.31148405]
[1748690012613,6.53210529,153.09,153.02,12.31148405]
[1748690012813,12.31148405,153.08,153.04,6.53423941]
[1748690013039,18.84401883,153.08,153.03,12.31148405]
[1748690013415,12.31148405,153.07,153.02,12.31148405]
[1748690014635,12.31148405,153.07,153.03,6.5346664]
[1748690014838,12.31148405,153.07,153.02,12.31148405]
[1748690014839,12.31148405,153.07,153.02,18.84640074]
[1748690017040,12.31148405,153.07,153.02,6.53491669]
[1748690017536,12.31148405,153.07,153.02,12.31148405]
[1748690018718,12.31148405,153.07,153.03,6.5346664]
[1748690020840,12.31148405,153.07,153.0,22.87571275]
[1748690021033,12.31148405,153.07,153.01,12.31148405]
[1748690021931,12.31148405,153.08,153.02,12.31148405]
[1748690022417,12.31148405,153.09,153.03,12.31148405]
[1748690022925,12.31148405,153.08,153.04,6.53423941]
[1748690024874,12.31148405,153.08,153.03,6.5346664]
[1748690028031,12.31148405,153.07,153.03,6.5346664]
[1748690029262,18.84451018,153.07,153.03,6.5346664]
[1748690029449,18.84451018,153.07,153.02,6.53491747]
[1748690029842,12.31148405,153.07,153.02,6.53491747]
[1748690030249,12.31148405,153.07,153.02,18.84640152]
[1748690031053,18.84445068,153.07,153.02,18.84640152]
[1748690031443,12.31148405,153.07,153.02,18.84640152]
[1748690032063,7.88874221,153.07,153.02,14.42365968]
[1748690033952,14.42152819,153.08,153.02,14.42365968]
[1748690037186,7.88874221,153.07,153.02,14.42365968]
[1748690038881,14.42153632,153.08,153.02,14.42365968]
[1748690040777,7.88874221,153.03,152.96,26.53839107]
[1748690040980,8.14429411,153.08,153.0,7.88874221]
[1748690041170,7.88874221,153.07,153.0,7.88874221]
[1748690041365,7.88874221,153.07,153.01,7.88874221]
[1748690041973,14.42187515,153.07,153.02,6.53509345]
[1748690042662,14.42187515,153.07,153.01,14.42412044]
[1748690042868,7.88874221,153.05,152.99,7.88874221]
[1748690043195,7.88874221,153.03,152.98,26.0]
[1748690043368,7.88874221,153.03,152.96,14.42611993]
[1748690043691,6.55292314,153.06,152.95,16.01015296]
[1748690043692,7.88874221,153.01,152.95,16.01015296]
[1748690044078,6.53594771,153.0,152.95,42.01015296]
[1748690044470,6.53594771,153.0,152.95,40.42665296]
[1748690044667,14.42468992,153.0,152.95,40.42665296]
[1748690044870,7.88874221,153.0,152.95,40.42665296]
[1748690045474,7.88874221,153.0,152.95,32.53791075]
[1748690045888,12.33876048,152.99,152.94,18.87714857]
[1748690046394,12.33876048,152.98,152.94,6.53838809]
[1748690046769,12.33876048,152.97,152.94,6.53838809]
[1748690047370,12.33876048,152.97,152.93,6.53893938]
[1748690050599,12.33876048,152.96,152.92,6.53936698]
[1748690051391,12.33876048,152.95,152.92,6.53936698]
[1748690051585,12.33876048,152.96,152.92,6.53936698]
[1748690052181,12.33876048,152.97,152.92,18.87812746]
[1748690052500,12.33876048,152.99,152.94,12.33876048]
[1748690053076,12.33876048,152.98,152.93,12.33876048]
[1748690053680,12.33876048,152.98,152.94,6.53851183]
[1748690054001,12.33876048,152.99,152.94,18.87727231]
[1748690055379,144.25954589,153.01,152.94,18.87727231]
[1748690055380,12.33876048,152.98,152.94,6.53851183]
[1748690056002,12.33876048,152.99,152.94,12.33876048]
[1748690057082,150.06261051,153.01,152.96,12.33876048]
[1748690057593,137.72385003,153.01,152.96,12.33876048]
[1748690057796,12.33876048,153.02,152.96,12.33876048]
[1748690058808,12.33876048,153.01,152.97,6.53722952]
[1748690065406,12.33876048,153.02,152.97,18.87599]
[1748690066690,22.73615075,153.04,152.98,12.33876048]
[1748690067010,10.39739027,153.04,153.0,12.33876048]
[1748690067603,10.39739027,153.04,153.01,6.53552055]
[1748690069383,18.28843158,153.04,152.99,7.89104131]
[1748690069610,7.89104131,153.03,152.98,14.4278435]
[1748690069997,12.33258924,153.03,152.98,18.86939143]
[1748690071610,12.33258924,153.04,152.99,12.33258924]
[1748690072602,57.94641739,153.09,153.02,12.33258924]
[1748690072603,13.34672815,153.09,153.02,12.33258924]
[1748690072802,13.34672815,153.09,153.0,32.2427]
[1748690072803,25.67931739,153.09,153.04,6.53423941]
[1748690073006,12.33258924,153.08,153.03,18.86714782]
[1748690073200,19.87889776,153.09,153.03,6.53455858]
[1748690073497,12.33258924,153.06,153.0,44.57528924]
[1748690073727,20.1632209,153.09,153.0,44.57528924]
[1748690073728,12.33258924,153.05,153.0,12.33258924]
[1748690074527,12.33258924,153.05,153.01,6.53540663]
[1748690074939,6.53348966,153.06,153.01,6.53540663]
[1748690074940,12.33258924,153.06,153.01,6.53540663]
[1748690075318,12.33258924,153.06,153.01,18.86799587]
[1748690076851,12.33258924,153.07,153.02,12.33258924]
[1748690077236,13.34672815,153.09,153.03,12.33258924]
[1748690077432,12.33258924,153.08,153.03,12.33258924]
[1748690077931,12.33258924,153.07,153.01,6.53540663]
[1748690078131,12.33258924,153.07,153.02,18.86744157]
[1748690079228,12.33258924,153.07,153.01,12.33258924]
[1748690080444,6.5328988,153.08,153.03,12.33258924]
[1748690080445,12.33258924,153.08,153.03,12.33258924]
[1748690080838,32.21156958,153.09,153.03,12.33258924]
[1748690081330,32.21156958,153.09,153.04,6.53423941]
[1748690083340,12.33258924,153.08,153.04,6.53423941]
[1748690083854,12.33258924,153.07,153.04,6.53423941]
[1748690085057,12.33258924,153.07,153.03,6.5346664]
[1748690088658,12.33258924,153.07,153.02,6.53506807]
[1748690088859,12.33258924,153.05,153.02,6.53506807]
[1748690089444,12.33258924,153.05,153.01,6.53552055]
[1748690089644,12.33258924,153.05,153.0,18.86839098]
[1748690089967,12.33258924,153.01,152.96,6.53748722]
[1748690090140,12.33258924,153.0,152.95,6.53798027]
[1748690090340,12.33258924,152.99,152.95,6.53798027]
[1748690090545,12.33258924,152.99,152.94,18.87072492]
[1748690091158,137.72385003,153.04,152.96,12.33258924]
[1748690091159,12.33258924,153.01,152.96,12.33258924]
[1748690091667,12.33258924,153.02,152.98,6.53680219]
[1748690092042,12.33258924,153.03,152.98,18.86939143]
[1748690092656,18.86729732,153.03,152.98,18.86939143]
[1748690093348,12.33258924,153.02,152.98,6.53680219]
[1748690094448,12.33258924,153.02,152.97,18.86967092]
[1748690094859,18.86775015,153.02,152.97,18.86967092]
[1748690097052,12.33258924,153.02,152.97,18.86967092]
[1748690099183,6.53476424,153.03,152.97,18.86967092]
[1748690099364,18.86735348,153.03,152.97,18.86967092]
[1748690102285,12.33258924,153.02,152.97,6.53708168]
[1748690102490,12.33258924,153.01,152.97,6.53708168]
[1748690102783,12.33258924,152.99,152.95,6.53791461]
[1748690103782,12.33258924,152.99,152.94,18.87100201]
[1748690103994,12.33258924,152.99,152.93,132.67140021]
[1748690104296,18.86938941,152.99,152.93,132.67140021]
[1748690104498,18.86938941,152.99,152.94,12.33258924]
[1748690105301,18.86938941,152.99,152.93,106.67140021]
[1748690106192,18.86938941,152.99,152.94,12.33258924]
[1748690107092,12.33258924,152.99,152.94,18.87105177]
[1748690107297,12.33258924,153.0,152.95,12.33258924]
[1748690107670,12.33258924,153.0,152.94,6.53846253]
[1748690107875,12.33258924,153.0,152.94,18.87105177]
[1748690110009,18.86875962,153.0,152.94,18.87105177]
[1748690110501,12.33258924,152.99,152.94,18.87105177]
[1748690111727,18.86909147,152.99,152.94,18.87105177]
[1748690111930,6.53650223,152.99,152.94,18.87105177]
[1748690112329,18.8686606,153.0,152.94,18.87105177]
[1748690114526,18.86764248,153.03,152.98,12.33258924]
[1748690114825,12.33258924,153.03,152.98,12.33258924]
[1748690116625,12.33258924,153.03,152.99,6.53637492]
[1748690121543,18.86645436,153.05,153.0,12.33258924]
[1748690121925,12.33258924,153.04,152.99,18.86896416]
[1748690123149,18.86686713,153.04,152.99,18.86896416]
[1748690124744,18.86656412,153.05,153.0,12.33258924]
[1748690124936,18.86644771,153.05,153.0,12.33258924]
[1748690126326,12.33258924,153.05,153.0,12.33258924]
[1748690126634,12.33258924,153.05,153.0,18.86815289]
[1748690127338,18.86642379,153.05,153.0,18.86815289]
[1748690128660,12.33258924,153.05,153.0,18.86815289]
[1748690129242,12.33258924,153.08,153.03,12.33258924]
[1748690129440,30.80791846,153.09,153.04,12.33258924]
[1748690129642,30.80791846,153.09,153.01,20.25774886]
[1748690129643,18.47532922,153.09,153.07,12.33258924]
[1748690129844,12.33258924,153.13,153.08,12.33258924]
[1748690130063,12.33258924,153.1,153.04,26.0]
[1748690130245,12.33258924,153.09,153.04,12.33258924]
[1748690130761,12.33258924,153.08,153.03,44.86705518]
[1748690131063,12.33258924,153.07,153.02,18.86754178]
[1748690131762,12.33258924,153.08,153.03,12.33258924]
[1748690132137,18.86487773,153.09,153.04,12.33258924]
[1748690132959,12.33258924,153.08,153.03,18.86686331]
[1748690133937,18.86551369,153.08,153.03,12.33258924]
[1748690134140,18.86551369,153.08,153.03,18.86715997]
[1748690134335,18.86551369,153.08,153.01,8.14333771]
[1748690134561,12.33258924,153.06,153.01,20.47592695]
[1748690134964,12.33258924,153.05,153.01,6.53523771]
[1748690135845,6.53357783,153.06,153.01,18.86782695]
[1748690136056,18.86568002,153.07,153.01,18.86782695]
[1748690136661,18.86568002,153.07,153.02,12.33258924]
[1748690138066,18.86568002,153.07,153.02,18.86768208]
[1748690140873,18.86524513,153.08,153.03,12.33258924]
[1748690141465,12.33258924,153.07,153.02,18.86768208]
[1748690142780,18.86556238,153.07,153.02,18.86768208]
[1748690144761,12.33258924,153.06,153.01,18.86793119]
[1748690144957,12.33258924,153.05,152.99,6.53606299]
[1748690145163,8.33579628,153.07,152.99,6.53606299]
[1748690145164,12.33258924,153.04,152.99,18.86865223]
[1748690145568,12.33258924,153.05,153.0,12.33258924]
[1748690146165,6.53423941,153.04,153.0,12.33258924]
[1748690147461,6.5340012,153.05,153.0,18.86852428]
[1748690147663,6.5340012,153.05,153.01,12.33258924]
[1748690149282,6.81770874,153.06,153.01,12.33258924]
[1748690149486,19.15029798,153.06,153.01,12.33258924]
[1748690152362,19.15029798,153.06,153.0,12.33258924]
[1748690152884,12.33258924,153.05,153.0,12.33258924]
[1748690153464,6.53423941,153.04,153.0,12.33258924]
[1748690153878,6.53423941,153.04,152.99,6.53618541]
[1748690154096,6.53423941,153.04,153.0,12.33258924]
[1748690154389,18.86657384,153.05,153.0,12.33258924]
[1748690155089,18.86657384,153.05,152.99,18.86877465]
[1748690155476,18.86657384,153.05,152.99,12.33258924]
[1748690155673,12.33258924,153.04,152.99,12.33258924]
[1748690156280,6.5339846,153.05,152.99,12.33258924]
[1748690156494,12.33258924,153.04,152.99,12.33258924]
[1748690156996,12.33258924,153.04,152.99,18.86886248]
[1748690157367,12.33258924,153.04,152.99,12.33258924]
[1748690158296,6.5346664,153.03,152.99,12.33258924]
[1748690159317,12.33258924,153.02,152.96,8.19033853]
[1748690159610,12.33258924,153.01,152.96,8.19033853]
[1748690159773,12.33258924,153.01,152.96,20.52292777]
[1748690160387,18.86784713,153.02,152.97,12.33258924]
[1748690161406,26.0,153.05,152.98,12.33258924]
[1748690161698,26.0,153.05,152.97,6.53700367]
[1748690161699,12.33258924,153.05,153.0,12.33258924]
[1748690161880,39.85108924,153.07,153.01,12.33258924]
[1748690162079,38.33258924,153.07,153.01,12.33258924]
[1748690162697,44.86573144,153.07,153.01,12.33258924]
[1748690162878,12.33258924,153.06,153.01,12.33258924]
[1748690163695,12.33258924,153.06,153.01,18.86792898]
[1748690163696,18.86602353,153.06,153.01,18.86792898]
[1748690163904,26.31015867,153.1,153.02,12.33258924]
[1748690164206,27.01000695,153.1,153.05,12.33258924]
[1748690164509,23.01909161,153.14,153.08,12.33258924]
[1748690164814,12.33258924,153.13,153.08,12.33258924]
[1748690165778,17.2166402,153.14,153.08,12.33258924]
[1748690165975,12.33258924,153.13,153.08,18.86481665]
[1748690166515,12.33258924,153.13,153.08,12.33258924]
[1748690167580,0.14216157,153.13,153.08,18.86500024]
[1748690167792,0.14216157,153.13,153.09,12.33258924]
[1748690168883,12.33258924,153.17,153.12,12.33258924]
[1748690169310,12.33258924,153.17,153.11,12.33258924]
[1748690169617,12.33258924,153.16,153.11,12.33258924]
[1748690169979,12.33258924,153.16,153.1,20.34698924]
[1748690169980,12.33258924,153.15,153.1,20.34698924]
[1748690170178,12.33258924,153.15,153.1,1.5168]
[1748690170599,12.33258924,153.14,153.1,1.5168]
[1748690170806,12.33258924,153.15,153.1,13.84938924]
[1748690170994,12.33258924,153.15,153.1,20.38093902]
[1748690172113,42.31999371,153.19,153.1,20.38093902]
[1748690172114,12.33258924,153.17,153.12,12.33258924]
[1748690172701,26.0,153.19,153.12,12.33258924]
[1748690172905,12.33258924,153.17,153.12,12.33258924]
[1748690173112,12.33258924,153.17,153.12,18.86316042]
[1748690174002,26.0,153.21,153.14,12.33258924]
[1748690174200,22.84625329,153.2,153.11,12.86789758]
[1748690174419,12.33258924,153.15,153.11,12.86789758]
[1748690174623,12.33258924,153.16,153.11,25.20048682]
[1748690174821,12.33258924,153.17,153.12,12.33258924]
[1748690175319,12.33258924,153.18,153.13,18.86298824]
[1748690176500,18.86027527,153.2,153.15,12.33258924]
[1748690177207,12.33258924,153.2,153.15,18.86199582]
[1748690177398,20.01788686,153.22,153.16,12.33258924]
[1748690177399,12.33258924,153.21,153.16,12.33258924]
[1748690178222,26.54455658,153.22,153.16,12.33258924]
[1748690178413,26.54455658,153.22,153.15,6.52940658]
[1748690178414,12.33258924,153.2,153.15,18.86199582]
[1748690178820,12.33258924,153.21,153.16,12.33258924]
[1748690179921,12.33258924,153.21,153.16,18.86137086]
[1748690180109,12.33258924,153.2,153.16,6.52878162]
[1748690180809,12.33258924,153.21,153.16,6.52878162]
[1748690181005,18.85960731,153.21,153.16,6.52878162]
[1748690181321,12.33258924,153.21,153.16,18.86137086]
[1748690181521,18.85927791,153.22,153.17,12.33258924]
[1748690183407,18.85927791,153.22,153.17,18.86122843]
[1748690183915,18.85927791,153.22,153.17,12.33258924]
[1748690185221,12.33258924,153.21,153.16,18.86155885]
[1748690185837,18.8596195,153.21,153.16,18.86155885]
[1748690187037,6.52656311,153.22,153.16,18.86155885]
[1748690187341,18.85915235,153.22,153.17,12.33258924]
[1748690188142,18.85915235,153.22,153.17,18.86114443]
[1748690188809,12.33258924,153.22,153.17,18.86114443]
[1748690189014,18.85870675,153.24,153.19,12.33258924]
[1748690189215,18.85802092,153.25,153.2,12.33258924]
[1748690190242,18.85802092,153.25,153.19,18.86006213]
[1748690190732,12.33258924,153.22,153.17,12.33258924]
[1748690190942,12.33258924,153.2,153.15,39.86668924]
[1748690191161,12.33258924,153.19,153.14,12.33258924]
[1748690191437,12.33258924,153.18,153.12,25.34205186]
[1748690191643,12.33258924,153.18,153.13,12.33258924]
[1748690192221,12.33258924,153.19,153.14,6.52997257]
[1748690193016,12.33258924,153.2,153.15,12.33258924]
[1748690193221,12.33258924,153.21,153.15,12.33258924]
[1748690193518,6.2628,153.23,153.14,6.52997257]
[1748690193519,12.33258924,153.23,153.18,12.33258924]
[1748690194347,8.07645389,153.25,153.17,6.52856612]
[1748690194348,12.33258924,153.22,153.17,6.52856612]
[1748690195337,12.33258924,153.2,153.16,6.52905469]
[1748690195718,12.33258924,153.21,153.16,18.86164393]
[1748690196645,12.33258924,153.22,153.17,12.33258924]
[1748690197028,12.33258924,153.23,153.18,12.33258924]
[1748690197217,8.07645501,153.25,153.17,12.33258924]
[1748690197218,12.33258924,153.22,153.17,12.33258924]
[1748690197652,0.28432314,153.24,153.17,12.33258924]
[1748690197829,12.33258924,153.22,153.17,12.33258924]
[1748690198338,12.33258924,153.23,153.17,12.33258924]
[1748690198526,12.33258924,153.24,153.18,18.86085663]
[1748690200245,12.33258924,153.24,153.19,12.33258924]
[1748690201226,18.85833958,153.24,153.19,12.33258924]
[1748690201630,18.85833958,153.24,153.18,12.33258924]
[1748690202036,12.33258924,153.23,153.18,12.33258924]
[1748690202346,18.85887919,153.23,153.18,6.52809096]
[1748690202731,12.33258924,153.22,153.18,6.52809096]
[1748690204750,18.8584408,153.24,153.18,18.8606802]